Cogmind - Beta 15 @@@ ROGUE MODE // 2025.05.08 @ 12:29:34 Player: YA-B01 Result: Destroyed by exploding Fusion Modulator Performance ------------- Evolutions (6) 3000 Regions Visited (14) 2800 Robots Destroyed (114) 570 Value Destroyed (3165) 3165 Prototype IDs (52) 1040 Alien Tech Used (0) 0 Bonus (2100) 2100 TOTAL SCORE: 12675 Bonus ------- Registered with UFD 300 Met Optimus in HQ 500 Met Data Miner 300 Met Warlord at Base 500 MAIN.C Attacked Warlord 500 Cogmind --------- Core Integrity 0/1150 Matter 300/300 Energy 100/100 System Corruption 5% Temperature Cool (12) Movement Core (50) Location -4/Factory Parts ------- > --- POWER (2) -------- (None) > --- PROPULSION (4) --- (None) > --- UTILITY (10) ----- Enhanced Optical Array Advanced Signal Interpreter A0-MCA's Component Scanner > --- WEAPON (3) ------- (None) > --- INVENTORY (5) ---- Seismic Detector Heavy Shock Bomb Launcher Mini Grenade Launcher Smartbomb Launcher Peak State ------------ > --- POWER ------------ Vortex Chain Reactor > --- PROPULSION ------- Armored Medium Treads Armored Huge Wheel > --- UTILITY ---------- Large Storage Unit Improved Trap Scanner Enhanced Optical Array Advanced Sensor Array Advanced Signal Interpreter Advanced Transmission Jammer Improved Hacking Suite Advanced Hacking Suite Improved System Shield A0-MCA's Component Scanner > --- WEAPON ----------- Wave Gun Plasma Cannon Phase Cannon > --- INVENTORY -------- Improved Medium Treads Cooling System Improved Coolant Injector Deep Structural Scanner Seismic Detector Improved Arc Projector Heavy Shock Bomb Launcher Mini Grenade Launcher Smartbomb Launcher Remote Datajack Great Axe [Rating: 107] Favorites ----------- Power Reinforced Ion Engine Engine Reinforced Ion Engine Power Core Micro Nuclear Core Reactor Vortex Chain Reactor Propulsion Wheel Treads Improved Medium Treads Wheel Wheel Utility Large Storage Unit Device Advanced Sensor Array Storage Large Storage Unit Processor Advanced Signal Interpreter Hackware Advanced Hacking Suite Protection Enhanced Scrap Shield Weapon Hammer Energy Gun Wave Gun Energy Cannon Plasma Cannon Ballistic Gun Subdweller Machine Gun Ballistic Cannon Light Cannon Launcher Grenade Launcher Special Weapon Plasma Flamer Impact Weapon Hammer Slashing Weapon Great Axe Build | -11 -10 -10 -9 -9 -6 -6 -6 -6 -5 -5 -5 -5 -4 -4 ------- Run | Yrd Mat Sub Rec Scr Fac Low Low Dat Pro Fac Upp War Pro Fac Slots Evolved 12 | . . . . . 8 . . . . 2 . . . 2 Power 1 | . . . . . 1 . . . . . . . . . Propulsion 2 | . . . . . 2 . . . . . . . . . Utility 8 | . . . . . 4 . . . . 2 . . . 2 Weapon 1 | . . . . . 1 . . . . . . . . . Parts Attached 86 | 6 8 9 7 8 10 7 3 . 2 13 . 1 1 11 Power 8 | 1 1 . 1 . 1 1 . . . 2 . 1 . . Engine 6 | 1 1 . 1 . . 1 . . . 2 . . . . Core 1 | . . . . . 1 . . . . . . . . . Reactor 1 | . . . . . . . . . . . . 1 . . Propulsion 20 | 2 . 2 4 . 3 1 1 . 1 3 . . . 3 Treads 9 | 2 . 1 1 . 2 . . . 1 . . . . 2 Leg . | . . . . . . . . . . . . . . . Wheel 11 | . . 1 3 . 1 1 1 . . 3 . . . 1 Hover . | . . . . . . . . . . . . . . . Flight . | . . . . . . . . . . . . . . . Utility 34 | 1 3 2 1 6 6 1 1 . 1 5 . . . 7 Device 11 | . . . . 2 4 . . . 1 1 . . . 3 Storage 4 | 1 3 . . . . . . . . . . . . . Processor 4 | . . . . 1 1 . 1 . . . . . . 1 Hackware 5 | . . . . . . . . . . 4 . . . 1 Protection 10 | . . 2 1 3 1 1 . . . . . . . 2 Artifact . | . . . . . . . . . . . . . . . Weapon 24 | 2 4 5 1 2 . 4 1 . . 3 . . 1 1 Energy Gun 8 | 1 2 . . 2 . . . . . 2 . . . 1 Energy Cannon 4 | . . 2 . . . 2 . . . . . . . . Ballistic Gun 3 | 1 1 . 1 . . . . . . . . . . . Ballistic Cannon 1 | . 1 . . . . . . . . . . . . . Launcher 4 | . . 2 . . . 1 . . . . . . 1 . Special Weapon 2 | . . . . . . 1 1 . . . . . . . Impact Weapon 1 | . . 1 . . . . . . . . . . . . Slashing Weapon 1 | . . . . . . . . . . 1 . . . . Piercing Weapon . | . . . . . . . . . . . . . . . Special Melee Weapon . | . . . . . . . . . . . . . . . Unidentified Prototypes 2 | . . . . . . 1 . . . . . 1 . . Parts Lost 34 | . . 4 1 3 . 1 2 . 1 . . . 3 19 Power 1 | . . . . . . . . . . . . . . 1 Propulsion 10 | . . 3 . 1 . . 1 . . . . . 1 4 Utility 13 | . . . 1 1 . . 1 . . . . . 1 9 Weapon 10 | . . 1 . 1 . 1 . . 1 . . . 1 5 Highest Loss Streak 17 | . . 1 1 3 . 1 1 . 1 . . . 2 17 To Critical Strikes . | . . . . . . . . . . . . . . . Average Backups 12 | 3 8 13 12 13 13 13 10 11 10 12 13 13 12 13 Power . | . 1 1 1 . . . . . . . . . . . Propulsion . | . 1 . 1 1 . 1 1 1 . . 1 1 1 . Utility 6 | . 3 4 5 5 8 9 6 7 7 6 6 6 6 5 Weapon 4 | . 3 7 5 5 4 3 3 3 2 4 6 6 5 5 Tool/Special . | . . . . . . . . . . . . . . . Unused Backups 26 | 1 3 6 . 3 1 2 . . . 3 . . . 7 Power 3 | . . 2 . 1 . . . . . . . . . . Propulsion . | . . . . . . . . . . . . . . . Utility 17 | 1 3 3 . 2 1 1 . . . 2 . . . 4 Weapon 4 | . . 1 . . . 1 . . . 1 . . . 1 Tool/Special 2 | . . . . . . . . . . . . . . 2 Average Slot Usage (%) 90 | . 94 97 85 98 81 92 89 86 91 90 88 86 72 84 Engine 10 | . 14 14 14 14 6 6 13 13 13 11 11 7 . . Treads 9 | . 28 17 8 . 9 13 6 6 12 7 5 5 5 4 Wheel 12 | . . 8 16 27 12 12 15 13 13 12 11 11 5 7 Device 7 | . . . . 12 18 19 6 6 6 5 5 5 5 14 Storage 8 | . 14 14 14 14 6 6 6 6 6 5 5 5 5 4 Processor 6 | . . . . . . 6 12 13 13 11 11 11 11 14 Hackware 3 | . . . . . . . . . . 10 11 11 11 14 Protection 5 | . 8 14 6 . 6 . 6 6 6 5 5 5 2 . Energy Gun 2 | . 13 . . . . 2 5 6 . 4 5 5 4 . Energy Cannon 6 | . . 3 9 . 12 5 6 13 12 5 5 5 8 9 Ballistic Gun 2 | . 13 . 2 13 . . . . . . . . . . Launcher 3 | . . 16 . . . 5 2 . . . . . 2 . Impact Weapon 4 | . . 7 11 13 6 3 3 . 4 1 . . . . Peak Build Rating 107 | 6 8 15 14 18 53 62 63 54 62 82 84 96 96 107 Average Rating 46 | 5 7 13 12 14 41 54 52 54 59 75 82 88 88 99 On Entrance 45 | . 6 8 13 13 15 53 59 54 54 58 81 84 96 82 Naked Turns . | . . . . . . . . . . . . . . . Heaviest Build 91 | 13 31 40 42 48 59 67 68 68 68 72 72 86 91 85 Greatest Support 60 | 40 40 40 40 40 30 20 60 26 26 38 38 38 38 38 Greatest Overweight (x) 7 | . . 3 3 4 3 6 3 2 2 2 1 2 3 7 Average Overweight (x) 1 | . . 1 1 1 2 2 1 2 2 1 1 1 2 1 Largest Inventory Capacity 15 | 8 15 15 15 15 15 15 15 15 15 15 15 15 15 15 Average Capacity 14 | 7 11 15 15 15 15 15 15 15 15 15 15 15 15 14 Most Carried 15 | 6 14 15 15 15 15 15 15 15 15 15 15 15 15 15 Average Carried 13 | 3 8 14 14 14 13 14 12 15 12 14 15 15 13 14 Final Capacity 15 | 8 15 15 15 15 15 15 15 15 15 15 15 15 15 5 Final Carried 15 | 5 14 15 15 15 15 15 15 15 11 15 15 15 14 5 Class Distribution -------------------- 30% | Mutant 13% | Hacker-Skirmisher 12% | Commander-Mutant 11% | Hacker-Assassin 11% | Assassin 6% | Skirmisher 5% | Derelict-Skirmisher 4% | Derelict-Mutant Dominant Class ---------------- Mutant | -10/Materials Mutant | -10/Subcaves Mutant | -9/Recycling Commander-Mutant | -9/Scraptown Mutant | -6/Factory Assassin | -6/Lower Caves Derelict-Mutant | -6/Lower Caves Derelict-Skirmisher | -6/Data Miner Assassin | -5/Proximity Caves Hacker-Assassin | -5/Factory Hacker-Skirmisher | -5/Upper Caves Hacker-Skirmisher | -5/Warlord Hacker-Skirmisher | -4/Proximity Caves Hacker-Assassin | -4/Factory Resources | -11 -10 -10 -9 -9 -6 -6 -6 -6 -5 -5 -5 -5 -4 -4 ----------- Run | Yrd Mat Sub Rec Scr Fac Low Low Dat Pro Fac Upp War Pro Fac Matter Collected 2534 | 263 224 580 146 184 100 245 160 . 70 282 . . 190 90 Remotely . | . . . . . . . . . . . . . . . Salvage Created 5028 | 171 393 417 2429 239 . 107 263 . 62 334 . . 432 181 Parts 189 | 11 23 20 46 19 . 6 11 . 4 17 . . 15 17 Haulers Intercepted 2 | . 2 . . . . . . . . . . . . . Recyclers Shooed 23 | . . . 21 . . . . . . 2 . . . . Parts Field Recycled . | . . . . . . . . . . . . . . . Retrieved Matter . | . . . . . . . . . . . . . . . Parts Self-Destructed 26 | . . 7 . . . 4 8 . 2 . . . 5 . Prevented 20 | . . . . . . . 10 . . . . . 10 . Kills | -11 -10 -10 -9 -9 -6 -6 -6 -6 -5 -5 -5 -5 -4 -4 ------- Run | Yrd Mat Sub Rec Scr Fac Low Low Dat Pro Fac Upp War Pro Fac Combat Hostiles Destroyed 59 | . 2 15 5 4 . 6 8 . 3 5 . . 9 2 Melee 1 | . . . 1 . . . . . . . . . . . Guns 8 | . 2 . . 3 . . 2 . . . . . 1 . Cannons 10 | . . 2 2 1 . . 1 . . 2 . . . 2 AOE 30 | . . 12 . . . 6 5 . 3 . . . 4 . Classes Destroyed 19 | 3 5 1 1 3 . 2 2 . . 1 . . 1 . Worker 8 | 2 4 . . . . . . . . 1 . . . 1 Builder 8 | . 2 . 2 . . . . . . 2 . . . 2 Tunneler 4 | 3 1 . . . . . . . . . . . . . Hauler 2 | . 2 . . . . . . . . . . . . . Recycler 30 | 1 . . 29 . . . . . . . . . . . Minesweeper 3 | . . . . . . 1 2 . . . . . . . Mechanic 1 | . . . . . . . 1 . . . . . . . Operator 1 | . 1 . . . . . . . . . . . . . Watcher 7 | . 3 . . . . . . . . 4 . . . . Swarmer 16 | . . . . . . 4 4 . 3 . . . 5 . Grunt 12 | . 2 2 1 . . 2 3 . . 1 . . 1 . Brawler 1 | . . . . . . . 1 . . . . . . . Sentry 5 | . . . 4 . . . . . . . . . 1 . Hunter 2 | . . . . . . . . . . . . . 2 . Programmer 6 | . . . . . . . . . . 4 . . . 2 Subdweller 13 | . . 13 . . . . . . . . . . . . Explorer 1 | . . . . 1 . . . . . . . . . . Ranger 1 | . . . . 1 . . . . . . . . . . Scrapper 2 | . . . . 2 . . . . . . . . . . Best Kill Streak 9 | 3 3 3 9 2 . 4 4 . 3 2 . . 4 2 Combat Bots Only 4 | . 1 3 1 2 . 4 4 . 3 2 . . 4 1 Max Kills in Single Turn 2 | 1 2 1 1 1 . 2 2 . 2 1 . . 1 1 Gunslinging . | . . . . . . . . . . . . . . . Exploded 2 | . . 1 . . . 2 2 . 2 . . . 1 . Melee 1 | . . . 1 . . . . . . . . . . . Uniques/NPCs Destroyed . | . . . . . . . . . . . . . . . Combat | -11 -10 -10 -9 -9 -6 -6 -6 -6 -5 -5 -5 -5 -4 -4 -------- Run | Yrd Mat Sub Rec Scr Fac Low Low Dat Pro Fac Upp War Pro Fac Hostile Shots Fired 594 | . 18 49 21 33 . 12 57 . 12 42 2 . 58 290 Missed 149 | . 3 13 5 5 . 6 16 . 2 13 . . 20 66 Hits 445 | . 15 36 16 28 . 6 41 . 10 29 2 . 38 224 Projectile 445 | . 15 36 16 28 . 6 41 . 10 29 2 . 38 224 AOE 1 | . . . . . . . . . . 1 . . . . Critical Strikes 12 | . . 1 . 4 . . . . . 2 . . 1 4 Part Disruptions 2 | . . . . . . . . . . 1 . . . 1 Damage Taken 7202 | . 226 674 225 403 . 119 671 . 217 606 40 . 729 3292 Core 1500 | . 49 82 37 27 . 4 67 . 15 38 . . 30 1151 Absorbed by Shields 119 | . . . . 119 . . . . . . . . . . Ignored by Resistances 54 | . . 54 . . . . . . . . . . . . Regen/Repaired (Parts) 214 | . . . . . 33 37 . . . . . 86 . 58 Core Remaining (%) 76 | 100 . . . 22 . . . . 89 . . . 93 . Volleys Fired 387 | 18 54 38 3 13 4 15 36 4 49 65 . . 38 50 Largest 3 | 2 2 2 2 2 2 2 2 1 1 3 . . 3 3 Hottest 266 | 70 100 100 110 110 140 165 150 85 85 266 . . 266 220 Shots Fired 525 | 27 92 61 7 19 8 19 41 4 49 91 . . 45 62 Gun 197 | 27 89 8 3 18 . 4 5 . . 33 . . 3 7 Cannon 227 | . 3 10 4 1 8 4 23 4 47 42 . . 26 55 Launcher 77 | . . 43 . . . 9 8 . 2 . . . 15 . Special 24 | . . . . . . 2 5 . . 16 . . 1 . Kinetic 63 | 9 41 3 3 7 . . . . . . . . . . Thermal 332 | 18 47 7 4 1 8 6 28 4 47 77 . . 30 55 Explosive 62 | . . 43 . . . 9 8 . 2 . . . . . Electromagnetic 68 | . 4 8 . 11 . 4 5 . . 14 . . 15 7 Robot Hit Streak 13 | 13 12 11 3 2 . 5 8 . . 8 . . 4 3 Robot Miss Streak 6 | 3 3 1 1 4 . 5 6 . 1 2 . . 3 2 Penetration Max . | . . . . . . . . . . . . . . . Secondary Targets . | . . . . . . . . . . . . . . . Shots Hit Robots 268 | 20 49 22 62 13 2 9 22 . . 47 . . 7 15 Core Hits 154 | 8 22 26 14 8 1 13 21 . 5 17 . . 9 10 Critical Kills 7 | . . . 6 . . . . . . . . . 1 . Critical Parts Destroyed 8 | . . . 8 . . . . . . . . . . . Critical Strikes 22 | 1 1 . 14 . . . . . . 3 . . 3 . Burn 7 | 1 1 . . . . . . . . 3 . . 2 . Meltdown 1 | . . . . . . . . . . . . . 1 . Smash 14 | . . . 14 . . . . . . . . . . . Melee Attacks 217 | . . 48 75 2 38 . 11 . . 27 . . . 16 Impact 189 | . . 48 75 2 38 . 11 . . 15 . . . . Slashing 28 | . . . . . . . . . . 12 . . . 16 Piercing . | . . . . . . . . . . . . . . . Sneak Attacks 41 | . . . 36 . . . . . . 3 . . . 2 Combat Hostiles 2 | . . . 2 . . . . . . . . . . . Follow-up Attacks . | . . . . . . . . . . . . . . . Damage Inflicted 10337 | 245 616 1839 2591 163 35 748 1393 . 204 1218 . . 567 718 Guns 1695 | 236 574 . . 110 . 68 83 . . 503 . . 47 74 Cannons 1256 | . . 106 84 17 . 87 428 . . 164 . . 27 343 Explosions 3850 | . . 1554 . . . 582 857 . 204 . . . 481 172 Melee 3192 | . . 179 2492 36 35 . . . . 326 . . . 124 Ramming 85 | 9 42 . 15 . . . . . . 14 . . . 5 Kinetic 333 | 61 219 . . 53 . . . . . . . . . . Thermal 2696 | 175 355 106 84 17 . 149 594 . . 787 . . 86 343 Explosive 3177 | . . 1554 . . . 531 716 . 204 . . . . 172 Electromagnetic 854 | . . . . 57 . 68 83 . . 91 . . 481 74 Impact 2863 | . . 179 2492 36 35 . . . . 121 . . . . Slashing 329 | . . . . . . . . . . 205 . . . 124 Piercing . | . . . . . . . . . . . . . . . Highest Corruption 5 | . . . 1 . . . . . . 4 4 4 . 5 Average Corruption 2 | . . . 1 . . . . . . 3 4 4 . 3 Corruption Purged . | . . . . . . . . . . . . . . . Corruption Blocked . | . . . . . . . . . . . . . . . Effects 44 | . . . 6 . . . . . . 33 3 . . 2 Message Errors 10 | . . . 4 . . . . . . 6 . . . . Matter Fused 7 | . . . . . . . . . . 7 . . . . Heat Flow Errors 11 | . . . . . . . . . . 9 2 . . . Energy Discharges 8 | . . . . . . . . . . 7 . . . 1 Parts Rejected 1 | . . . . . . . . . . . . . . 1 Data Loss (minor) 4 | . . . 1 . . . . . . 2 1 . . . Data Loss (major) 1 | . . . . . . . . . . 1 . . . . Misfires 1 | . . . 1 . . . . . . . . . . . Alerts 1 | . . . . . . . . . . 1 . . . . Overload Shots . | . . . . . . . . . . . . . . . Overflow Damage 973 | . . 10 785 . . 20 88 . . 63 . . . 7 Projectiles 85 | . . . 3 . . . 75 . . . . . . 7 Explosions 33 | . . . . . . 20 13 . . . . . . . Melee 855 | . . 10 782 . . . . . . 63 . . . . Knockbacks 16 | . . 1 13 . 1 . . . . 1 . . . . Impact 15 | . . 1 12 . 1 . . . . 1 . . . . Kinetic . | . . . . . . . . . . . . . . . Secondary 1 | . . . 1 . . . . . . . . . . . Self-Inflicted Damage 155 | . . 24 . . . 14 25 . 40 7 . . 43 2 Shots 8 | . . 2 . . . 1 1 . 1 . . . 3 . Rammed 10 | 3 2 . 1 . . . . . . 1 . . . 3 Targets Rammed 13 | 3 4 . 2 . . . . . . 1 . . . 3 Kicked . | . . . . . . . . . . . . . . . Crushed 3 | . 2 . 1 . . . . . . . . . . . Highest Temperature 447 | 110 432 4 66 438 12 204 447 4 288 339 227 . 308 360 Average Temperature 102 | 47 133 1 33 188 6 73 113 3 118 86 108 . 105 80 Received Heat Transfer 2010 | . 126 159 72 276 . 36 93 . 12 39 12 . 48 1137 Effects 21 | . 8 . . 1 . . 6 . . . . . 3 3 Shutdowns 3 | . 1 . . 1 . . 1 . . . . . . . Energy Bleed 1 | . . . . . . . 1 . . . . . . . Interference 9 | . . . . . . . 3 . . . . . 3 3 Matter Decay 1 | . 1 . . . . . . . . . . . . . Short Circuit 1 | . . . . . . . 1 . . . . . . . Damage (minor) 1 | . 1 . . . . . . . . . . . . . Damage (major) 5 | . 5 . . . . . . . . . . . . . Siege Activations . | . . . . . . . . . . . . . . . Martial Activations . | . . . . . . . . . . . . . . . Shielding Activations . | . . . . . . . . . . . . . . . Robots Disrupted 2 | . . . . . . . . . . 2 . . . . Combat Hostiles 1 | . . . . . . . . . . 1 . . . . Robots Corrupted 21 | . . 1 16 . . . . . . 1 . . 3 . Combat Hostiles 6 | . . 1 2 . . . . . . . . . 3 . Parts Fried 28 | . . . 19 . . . . . 1 2 . . 6 . Impact Corruptions 39 | . . 1 37 . . . . . . 1 . . . . Robots Melted 4 | . . . . . . . . . . 3 . . 1 . Combat Hostiles 4 | . . . . . . . . . . 3 . . 1 . Parts Melted 13 | 1 2 . . 1 . . . . . 4 . . 3 2 Heat Transferred 6371 | 592 1110 222 111 25 . 254 828 . . 2369 . . 438 422 Parts Sabotaged . | . . . . . . . . . . . . . . . Parts Stolen . | . . . . . . . . . . . . . . . Parts Stripped . | . . . . . . . . . . . . . . . Power Chain Reactions 2 | . . . . . . 1 1 . . . . . . . Alert | -11 -10 -10 -9 -9 -6 -6 -6 -6 -5 -5 -5 -5 -4 -4 ------- Run | Yrd Mat Sub Rec Scr Fac Low Low Dat Pro Fac Upp War Pro Fac Maximum Alert Level . | . . . . . . . . . . . . . . . Low Security (%) 100 | 100 100 . 100 . 100 . . . . 100 . . . 100 Level 1 . | . . . . . . . . . . . . . . . Level 2 . | . . . . . . . . . . . . . . . Level 3 . | . . . . . . . . . . . . . . . Level 4 . | . . . . . . . . . . . . . . . Level 5 . | . . . . . . . . . . . . . . . High Security . | . . . . . . . . . . . . . . . Max Security . | . . . . . . . . . . . . . . . Peak Influence 83 | 15 38 . 73 . 15 . . . . 80 . . . 83 Initial 32 | . . . 2 . . . . . . 32 . . . . Average 15 | 1 4 . 28 . 1 . . . . 18 . . . 14 Influence Increases 2315 | 30 168 65 402 . 71 180 315 . 85 373 . . 245 381 Destroy 0b10 Robot/C 860 | . 40 40 100 . . 120 160 . 60 100 . . 180 60 Destroy 0b10 Robot/NC 320 | 30 65 . 155 . . 5 15 . . 35 . . . 15 Destroy Leader 138 | . 20 10 . . . 10 20 . 10 28 . . 20 20 Successful Hack 194 | . 28 . 20 . 29 . . . . 55 . . . 62 Select Force Hacks 90 | . . . 90 . . . . . . . . . . . Disable Machine 180 | . 15 . 30 . 30 . . . . 75 . . . 30 Destroy Structure 203 | . . . 7 . 12 . . . . 50 . . . 134 Lose Combat Pursuer 330 | . . 15 . . . 45 120 . 15 30 . . 45 60 Influence Decreases 2288 | 30 168 60 400 7 71 168 322 5 33 365 60 . 245 354 Entered New Map 61 | . . . 3 7 . . 3 5 . 20 23 . . . Time Decay 2087 | 30 168 50 387 . 70 158 299 . 33 345 37 . 235 275 Lost Part 119 | . . 10 10 . . 10 20 . . . . . 10 59 Lost Ally 21 | . . . . . 1 . . . . . . . . 20 Squads Dispatched 15 | . . . . . 1 . 1 . . 5 . . . 8 Investigation 1 | . . . . . . . . . . . . . . 1 Extermination 8 | . . . . . 1 . . . . 3 . . . 4 Reinforcement 5 | . . . . . . . . . . 2 . . . 3 Assault 1 | . . . . . . . 1 . . . . . . . Garrison . | . . . . . . . . . . . . . . . Intercept . | . . . . . . . . . . . . . . . Searches Triggered . | . . . . . . . . . . . . . . . Construction Impeded . | . . . . . . . . . . . . . . . Haulers Reinforced 1 | . . . . . . . . . . . . . . 1 Active Scanning Responses . | . . . . . . . . . . . . . . . Cargo Convoy Interrupts . | . . . . . . . . . . . . . . . Stealth | -11 -10 -10 -9 -9 -6 -6 -6 -6 -5 -5 -5 -5 -4 -4 --------- Run | Yrd Mat Sub Rec Scr Fac Low Low Dat Pro Fac Upp War Pro Fac Distress Signals 2 | . . . . . . . . . . 1 . 1 . . Communications Jammed . | . . . . . . . . . . . . . . . Distress Signals . | . . . . . . . . . . . . . . . Times Spotted 125 | . 11 19 5 10 4 8 11 . 5 21 2 . 11 18 Peak Tracking Total 11 | . 3 5 1 3 2 4 7 . 4 3 2 . 4 11 Tactical Retreats 16 | . . 1 . . . 3 4 . 1 2 . . 2 3 Traps | -11 -10 -10 -9 -9 -6 -6 -6 -6 -5 -5 -5 -5 -4 -4 ------- Run | Yrd Mat Sub Rec Scr Fac Low Low Dat Pro Fac Upp War Pro Fac Traps Triggered 1 | . . 1 . . . . . . . . . . . . Indirectly . | . . . . . . . . . . . . . . . Trap Hack Attempts . | . . . . . . . . . . . . . . . Triggered . | . . . . . . . . . . . . . . . Disarmed . | . . . . . . . . . . . . . . . Reprogrammed . | . . . . . . . . . . . . . . . Reused 8 | . . . . . . . 4 . 3 . . . 1 . Traps Extracted . | . . . . . . . . . . . . . . . Installed 9 | . . . . . . . 5 . 3 . . . 1 . Triggered 8 | . . . . . . . 4 . 3 . . . 1 . Most Traps Carried 4 | . . 1 . . . 4 4 4 4 1 1 1 1 . Machines | -11 -10 -10 -9 -9 -6 -6 -6 -6 -5 -5 -5 -5 -4 -4 ---------- Run | Yrd Mat Sub Rec Scr Fac Low Low Dat Pro Fac Upp War Pro Fac Machines Disabled 15 | . 1 1 2 1 2 . . 1 . 5 . . . 2 Max in Single Turn 1 | . 1 1 1 1 1 . . 1 . 1 . . . 1 Garrison Access 6 | . . . . . 1 . . . . 4 . . . 1 Machines Repaired . | . . . . . . . . . . . . . . . Machines Dismantled . | . . . . . . . . . . . . . . . Machines Sabotaged . | . . . . . . . . . . . . . . . Overloaded Fab Kills . | . . . . . . . . . . . . . . . Hacking | -11 -10 -10 -9 -9 -6 -6 -6 -6 -5 -5 -5 -5 -4 -4 --------- Run | Yrd Mat Sub Rec Scr Fac Low Low Dat Pro Fac Upp War Pro Fac Machines Accessed 84 | . 7 4 11 8 9 1 1 4 . 14 . 13 . 12 Terminals 22 | . 6 . 5 . 5 . . . . 3 . . . 3 Fabricators 6 | . . . . . 1 . . . . 3 . . . 2 Repair Stations 4 | . 1 . . . . . . . . 1 . . . 2 Recycling Units 13 | . . . 4 . 2 . . . . 3 . . . 4 Scanalyzers . | . . . . . . . . . . . . . . . Garrison Access 6 | . . . . . 1 . . . . 4 . . . 1 Total Hacks 255 | . 22 8 52 27 21 1 1 29 . 28 . 27 . 39 Successful 192 | . 12 8 38 27 9 1 1 29 . 13 . 27 . 27 Failed 63 | . 10 . 14 . 12 . . . . 15 . . . 12 Catastrophic 8 | . 1 . 3 . 3 . . . . 1 . . . . Database Lockouts . | . . . . . . . . . . . . . . . Manual 69 | . 7 . 19 . 12 . . . . 12 . 1 . 18 Terminals 69 | . 19 . 14 . 13 . . . . 9 . . . 14 Fabricators 14 | . . . . . 3 . . . . 5 . . . 6 Repair Stations 7 | . 3 . . . . . . . . 1 . . . 3 Recycling Units 39 | . . . 14 . 4 . . . . 6 . . . 15 Scanalyzers . | . . . . . . . . . . . . . . . Garrison Access 9 | . . . . . 1 . . . . 7 . . . 1 Terminal Hacks 138 | . 8 8 26 27 4 1 1 29 . 2 . 27 . 5 Record 89 | . 1 5 25 26 . . . 11 . 1 . 20 . . Part Schematic 13 | . . . 1 . . . . 11 . . . . . 1 Robot Schematic 4 | . . . . . . . . 4 . . . . . . Robot Analysis 1 | . 1 . . . . . . . . . . . . . Prototype ID Bank 12 | . 2 . . . 1 . . 3 . . . 5 . 1 Open Door 5 | . . 1 . . . 1 1 . . . . 2 . . Emergency Access Points 1 | . 1 . . . . . . . . . . . . . Terminal Index 1 | . . . . . . . . . . . . . . 1 Garrison Index 1 | . . . . . . . . . . . . . . 1 Alert Level 2 | . . . . . 1 . . . . 1 . . . . Locate Traps 4 | . 1 . . . 2 . . . . . . . . 1 Zone Layout 2 | . 2 . . . . . . . . . . . . . Proto ID Catalog 2 | . . 1 . 1 . . . . . . . . . . Release Object 1 | . . 1 . . . . . . . . . . . . Fabricator Hacks 5 | . . . . . 1 . . . . 1 . . . 3 Network Status 1 | . . . . . 1 . . . . . . . . . Load Schematic 2 | . . . . . . . . . . . . . . 2 Build 2 | . . . . . . . . . . 1 . . . 1 Repair Station Hacks 3 | . 1 . . . . . . . . . . . . 2 Scan Component 1 | . . . . . . . . . . . . . . 1 Repair 1 | . . . . . . . . . . . . . . 1 Refit 1 | . 1 . . . . . . . . . . . . . Recycling Unit Hacks 8 | . . . 4 . . . . . . . . . . 4 Retrieve Components 8 | . . . 4 . . . . . . . . . . 4 Scanalyzer . | . . . . . . . . . . . . . . . Garrison Access Hacks 6 | . . . . . 1 . . . . 4 . . . 1 Seal Access 6 | . . . . . 1 . . . . 4 . . . 1 Unauthorized Hacks 31 | . 3 . 8 . 2 . . . . 6 . . . 12 Terminals 14 | . 3 . 3 . 1 . . . . 2 . . . 5 Assimilate 1 | . . . . . . . . . . . . . . 1 Botnet 8 | . 2 . 2 . 1 . . . . 1 . . . 2 Operators 3 | . 1 . . . . . . . . 1 . . . 1 Skim 2 | . . . 1 . . . . . . . . . . 1 Fabricators 4 | . . . . . 1 . . . . 3 . . . . Report 2 | . . . . . 1 . . . . 1 . . . . Liberate 2 | . . . . . . . . . . 2 . . . . Repair Stations 2 | . . . . . . . . . . 1 . . . 1 Mechanics 2 | . . . . . . . . . . 1 . . . 1 Recycling Units 11 | . . . 5 . . . . . . . . . . 6 Monitor 1 | . . . . . . . . . . . . . . 1 Recyclers 1 | . . . . . . . . . . . . . . 1 Mask 6 | . . . 2 . . . . . . . . . . 4 Tunnel 3 | . . . 3 . . . . . . . . . . . Scanalyzers . | . . . . . . . . . . . . . . . Garrison Access . | . . . . . . . . . . . . . . . Data Cores Recovered 1 | . 1 . . . . . . . . . . . . . Used 1 | . 1 . . . . . . . . . . . . . Hacking Detections 37 | . 7 . 7 . 7 . . . . 10 . . . 6 Full Trace Events 5 | . 1 . 3 . . . . . . . . . . 1 Feedback Events 1 | . . . 1 . . . . . . . . . . . Corruption 1 | . . . 1 . . . . . . . . . . . Feedback Blocked . | . . . . . . . . . . . . . . . Robot Schematics Acquired 4 | . . . . . . . . 4 . . . . . . Robots Built 3 | . . . . . . . . . . . . . . 3 Authchips . | . . . . . . . . . . . . . . . Time 84 | . . . . . . . . . . . . . . 84 Total Robot Build Rating 18 | . . . . . . . . . . . . . . 18 Part Schematics Acquired 13 | . . . 1 . . . . 11 . . . . . 1 Parts Built 2 | . . . . . . . . . . 2 . . . . Authchips . | . . . . . . . . . . . . . . . Time 139 | . . . . . . . . . . 139 . . . . Total Part Build Rating 18 | . . . . . . . . . . 18 . . . . Parts Repaired 1 | . . . . . . . . . . . . . . 1 Time 18 | . . . . . . . . . . . . . . 18 Parts Recycled . | . . . . . . . . . . . . . . . Recycled Matter . | . . . . . . . . . . . . . . . Retrieved Matter . | . . . . . . . . . . . . . . . Retrieved Components 14 | . . . 11 . . . . . . . . . . 3 Parts Scanalyzed . | . . . . . . . . . . . . . . . Part Schematics Acquired . | . . . . . . . . . . . . . . . Parts Damaged . | . . . . . . . . . . . . . . . Bothacking | -11 -10 -10 -9 -9 -6 -6 -6 -6 -5 -5 -5 -5 -4 -4 ------------ Run | Yrd Mat Sub Rec Scr Fac Low Low Dat Pro Fac Upp War Pro Fac Used RIF Installer . | . . . . . . . . . . . . . . . Robots Hacked . | . . . . . . . . . . . . . . . Non-combat . | . . . . . . . . . . . . . . . Combat . | . . . . . . . . . . . . . . . Robot Hacks Applied . | . . . . . . . . . . . . . . . Relay Couplers Released . | . . . . . . . . . . . . . . . Fabnet Peak Effective % . | . . . . . . . . . . . . . . . Robots Rewired 5 | . . . 5 . . . . . . . . . . . Allies Hacked . | . . . . . . . . . . . . . . . Hacks Repelled . | . . . . . . . . . . . . . . . Allies | -11 -10 -10 -9 -9 -6 -6 -6 -6 -5 -5 -5 -5 -4 -4 -------- Run | Yrd Mat Sub Rec Scr Fac Low Low Dat Pro Fac Upp War Pro Fac Total Allies 9 | . . . 5 . . . . . . . . . . 4 Largest Group 5 | . . . 5 5 3 . . . . . . . . 4 Highest-Rated Group 113 | . . . 113 113 81 . . . . . . . . 100 Highest-Rated Ally 30 | . . . 27 27 27 . . . . . . . . 30 Total Orders 1 | . . . . 1 . . . . . . . . . . AID 1 | . . . . 1 . . . . . . . . . . Ally Attacks 14 | . . . . 1 . . . . . . . . . 13 Total Damage 485 | . . . . 7 . . . . . . . . . 478 Kills 1 | . . . . . . . . . . . . . . 1 Allies Corrupted . | . . . . . . . . . . . . . . . Allies Melted 7 | . . . . 6 . . . . . . . 1 . . Intel | -11 -10 -10 -9 -9 -6 -6 -6 -6 -5 -5 -5 -5 -4 -4 ------- Run | Yrd Mat Sub Rec Scr Fac Low Low Dat Pro Fac Upp War Pro Fac Active Infowar (turns) 14573 | . . . . 2367 634 1923 1662 230 1968 1938 127 690 1328 1706 Optics 9621 | . . . . . . . 1634 230 1968 1938 127 690 1328 1706 Sensors 9217 | . . . . . 270 1923 21 . 1818 1448 75 690 1277 1695 IFF 39 | . . . . 39 . . . . . . . . . . Terrain 2328 | . . . . 2328 . . . . . . . . . . Structural 4081 | . . . . . 634 1894 28 . . . . . . 1525 Traps 1701 | . . . . . . . . . . . . . . 1701 Jamming 68 | . . . . . . . . . . . . . . 68 Robot Analysis Total 1 | . 1 . . . . . . . . . . . . . Derelict Logs Recovered 15 | . . 1 . 4 . 1 2 . 3 . 2 . 2 . Drone Launches . | . . . . . . . . . . . . . . . Drone Recoveries . | . . . . . . . . . . . . . . . Exploration | -11 -10 -10 -9 -9 -6 -6 -6 -6 -5 -5 -5 -5 -4 -4 ------------- Run | Yrd Mat Sub Rec Scr Fac Low Low Dat Pro Fac Upp War Pro Fac Turns Passed 20919 | 200 1068 3326 1163 2689 648 1998 1773 230 1968 1938 127 690 1328 1773 Spaces Moved 12756 | 85 536 1217 680 1803 456 1024 1392 144 1294 1412 120 610 778 1205 Core 75 | 4 . . . . . . . . . . . . . 71 Treads 1425 | 81 536 647 118 13 1 . 28 . . . . . . 1 Legs . | . . . . . . . . . . . . . . . Wheels 11256 | . . 570 562 1790 455 1024 1364 144 1294 1412 120 610 778 1133 Hover . | . . . . . . . . . . . . . . . Flight . | . . . . . . . . . . . . . . . Fastest Speed 50 | 50 160 125 95 95 99 99 101 120 120 101 105 105 120 50 Average Speed 119 | 154 160 154 123 96 108 104 113 120 120 110 105 109 135 120 Slowest Speed 400 | 160 160 260 260 160 240 170 240 120 120 120 105 120 145 400 Overloaded Moves . | . . . . . . . . . . . . . . . Propulsion Burnouts . | . . . . . . . . . . . . . . . Robots Hopped . | . . . . . . . . . . . . . . . Potential Cave-ins 5 | . . . . . . . . . . . . . 5 . Cave-ins Triggered . | . . . . . . . . . . . . . . . Exploration Rate (%) 65 | 5 77 76 99 92 14 87 93 82 85 47 15 91 87 29 Regions Visited 14 Branch Regions 10 Pre-discovered Areas 5 | . . . 3 . . . . 1 1 . . . . . Known Exits Taken 10 | . . 1 . . 1 1 1 1 1 1 1 1 1 . Unknown Exits Taken 4 | 1 1 . 1 1 . . . . . . . . . . Scrap Searched 30 | . . 4 . 9 . 3 4 . 3 . 2 . 5 . Spaces Dug 135 | . . 16 5 . 12 8 3 3 17 21 . . 7 43 Terrain Destroyed 480 | . . 175 5 . 12 73 21 3 60 31 . . 23 77 Melee 51 | . . 8 5 . 12 . 3 . . 10 . . . 13 Projectile 141 | . . . . . . . 8 3 47 21 . . 23 39 AOE 288 | . . 167 . . . 73 10 . 13 . . . . 25 Terrain Rammed . | . . . . . . . . . . . . . . . Walls Destroyed . | . . . . . . . . . . . . . . . Machines Disabled . | . . . . . . . . . . . . . . . Actions | -11 -10 -10 -9 -9 -6 -6 -6 -6 -5 -5 -5 -5 -4 -4 --------- Run | Yrd Mat Sub Rec Scr Fac Low Low Dat Pro Fac Upp War Pro Fac Total 17585 | 124 662 2516 863 2723 531 1936 1526 197 1661 1653 120 631 1007 1435 Wait 3821 | 6 36 1168 29 867 14 859 61 50 305 105 . 19 178 124 Move 12743 | 85 535 1216 679 1802 455 1023 1391 143 1293 1411 119 609 777 1205 Hop . | . . . . . . . . . . . . . . . Pick Up 83 | 6 13 12 1 12 6 9 6 . . 8 . . 1 9 Fast Attach 37 | 6 2 3 4 4 4 1 1 . 2 3 . 1 . 6 Attach 31 | . . 1 1 3 3 3 2 . 2 3 . . 3 10 Detach 17 | . 1 . 1 1 1 4 1 . 2 2 . . 2 2 Swap 86 | . 8 16 6 9 3 12 6 . 1 17 1 . 5 2 Drop 82 | 1 9 14 4 9 3 10 6 . 4 11 . 2 1 8 Fire 387 | 18 54 38 3 13 4 15 36 4 49 65 . . 38 50 Melee 217 | . . 48 75 2 38 . 11 . . 27 . . . 16 Ram 4 | . . . . . . . . . . 1 . . . 3 Kick . | . . . . . . . . . . . . . . . Crush 8 | 2 4 . 2 . . . . . . . . . . . Escape Stasis . | . . . . . . . . . . . . . . . Rewire 60 | . . . 58 1 . . . . . . . . 1 . Trap 9 | . . . . . . . 5 . 3 . . . 1 . Miscellaneous . | . . . . . . . . . . . . . . . Route ------- -11/Scrapyard -10/Materials (discovered 3 exits: [*Mat] / [*Min] / *Sub) -10/Subcaves (discovered 2 exits: *Mat / *Rec) -9/Recycling (discovered 2 exits: [*Fac] / *Scr) -9/Scraptown (discovered 2 exits: *Fac x2) -6/Factory -6/Lower Caves -6/Lower Caves (discovered 2 exits: *Fac / *Dat) -6/Data Miner -5/Proximity Caves -5/Factory (discovered 5 exits: *Fac x3 / *Upp x2) -5/Upper Caves (discovered 2 exits: Upp / *War) -5/Warlord -4/Proximity Caves -4/Factory History --------- Turn | Location | Event 5 | -11/Scrapyard | Discovered new exit (range 16) 201 | -11/Scrapyard | Entered Materials 304 | -10/Materials | Build established: Mutant 440 | -10/Materials | Discovered new exit (range 9) 826 | -10/Materials | Discovered new exit (range 16) 1136 | -10/Materials | Discovered new exit (range 12) 1269 | -10/Materials | Entered Subcaves 1273 | -10/Subcaves | Shifting Twisted Machinery released Sub. Beam Cannon 1325 | -10/Subcaves | Identified exit to Materials 1327 | -10/Subcaves | Shifting Twisted Machinery released Sub. Beam Cannon 1368 | -10/Subcaves | Shifting Twisted Machinery released Mak. Shrapnel Gun 1371 | -10/Subcaves | Shifting Twisted Machinery released Mak. Thermal Plating 1857 | -10/Subcaves | Visited 4L-MR0's lab 1875 | -10/Subcaves | Found Tower Shield 4138 | -10/Subcaves | Visited Clippyterm 4142 | -10/Subcaves | Identified exit to Recycling 4142 | -10/Subcaves | Learned Factory trap positions 4595 | -10/Subcaves | Core integrity fell below 50% 4595 | -10/Subcaves | Entered Recycling 5051 | -9/Recycling | Discovered new exit (range 14) 5697 | -9/Recycling | Scanned before Scraplab entrance 5732 | -9/Recycling | Entered Scraplab 5748 | -9/Recycling | Discovered new exit (range 3) 5758 | -9/Recycling | Entered Scraptown 5758 | -9/Scraptown | Accompanied by 5 allies 5758 | -9/Scraptown | System corruption cleaned by C-Scrubber 5938 | -9/Scraptown | Build established: Commander-Mutant 6157 | -9/Scraptown | Discovered new exit (range 5) 6184 | -9/Scraptown | Scanned Subdweller tech in exchange for log data 6186 | -9/Scraptown | Learned location of 2 exits from Upper Caves 6188 | -9/Scraptown | Learned Factory terminal intel 6189 | -9/Scraptown | Learned location of 1 exit from Lower Caves 6272 | -9/Scraptown | Visited Awakened 6312 | -9/Scraptown | Visited Red Mages 6388 | -9/Scraptown | Visited Junk Repository 6423 | -9/Scraptown | Visited CPS Storage 6443 | -9/Scraptown | Visited Bundlers 6660 | -9/Scraptown | Visited UFD Registry 6704 | -9/Scraptown | Visited Junk Repository 6740 | -9/Scraptown | Visited Symbiants 6777 | -9/Scraptown | Registered with UFD as "Wavebomber" 6798 | -9/Scraptown | Visited LU-1G1's Boring Crew 6901 | -9/Scraptown | Visited A0-MCA Data Center 6907 | -9/Scraptown | Given a B+ rating by A0-MCA 6910 | -9/Scraptown | Found A0-MCA's Component Scanner 7504 | -9/Scraptown | Delivered Scrap Shield to a Scientist 7984 | -9/Scraptown | Visited Science Guys 8033 | -9/Scraptown | Met Optimus 8033 | -9/Scraptown | Accepted into 0bPrime 8136 | -9/Scraptown | Visited Scrap Suit Storage 8168 | -9/Scraptown | Visited DA-N13 Charitable Foundation 8178 | -9/Scraptown | Found DCF Scrap (29 items) 8210 | -9/Scraptown | Visited Science Testing Area 8225 | -9/Scraptown | Civil war broke out across Scraptown 8233 | -9/Scraptown | Visited Scrapoid Pod Storage 8252 | -9/Scraptown | Found Deep Structural Scanner 8311 | -9/Scraptown | Visited Modified Component R&D 8345 | -9/Scraptown | Optimus destroyed in the chaos of civil war 8384 | -9/Scraptown | Lost 11 allies 8395 | -9/Scraptown | Found Scrap Suit 8417 | -9/Scraptown | Lost 3 parts (1n1u1w) 8422 | -9/Scraptown | Discovered new exit (range 5) 8447 | -9/Scraptown | Entered Factory 8447 | -6/Factory | Accompanied by 3 allies 8447 | -6/Factory | Evolved 8 slots: Power x1, Propulsion x2, Utility x4, Weapon x1 8448 | -6/Factory | Loaded intel: 115 trap records 8449 | -6/Factory | Loaded intel: 26 terminal locations 8884 | -6/Factory | Build established: Mutant 9011 | -6/Factory | Discovered new exit (range 10) 9024 | -6/Factory | Identified exit to Lower Caves 9095 | -6/Factory | Entered Lower Caves 9096 | -6/Lower Caves | Identified exit to Lower Caves 9097 | -6/Lower Caves | UFD Scientist delivered a prototype 9098 | -6/Lower Caves | Lost 3 allies 9100 | -6/Lower Caves | Found Prototype Protection 9325 | -6/Lower Caves | Build established: Assassin 9761 | -6/Lower Caves | Encountered a Warlord checkpoint 10384 | -6/Lower Caves | Build established: Skirmisher 10960 | -6/Lower Caves | Identified Enh. Scrap Shield 11093 | -6/Lower Caves | Entered another Lower Caves area 11140 | -6/Lower Caves | Learned Factory non-interactive machine intel 11371 | -6/Lower Caves | Learned Factory trap positions 11546 | -6/Lower Caves | Build established: Derelict-Mutant 11797 | -6/Lower Caves | Attracted the attention of an 0b10 outpost 11912 | -6/Lower Caves | Discovered new exit (range 11) 11934 | -6/Lower Caves | Identified exit to Data Miner 12386 | -6/Lower Caves | Build established: Derelict-Skirmisher 12554 | -6/Lower Caves | Discovered new exit (range 18) 12866 | -6/Lower Caves | Entered Data Miner 12866 | -6/Data Miner | Discovered new exit (range 6) 12875 | -6/Data Miner | Identified exit to Proximity Caves 12884 | -6/Data Miner | Met Data Miner 12918 | -6/Data Miner | Learned location of Section 7 (-2) 12918 | -6/Data Miner | Acquired the access code to Warlord's prototype stash 12940 | -6/Data Miner | Received God Mode back door access code from Data Miner 13094 | -6/Data Miner | Data Conduit disabled 13096 | -6/Data Miner | Entered Proximity Caves 13262 | -5/Proximity Caves | Spotted B-75 Beast 13846 | -5/Proximity Caves | Build established: Assassin 14690 | -5/Proximity Caves | Learned Factory garrison access intel 14731 | -5/Proximity Caves | Learned location of 2 exits from Factory 15032 | -5/Proximity Caves | Discovered new exit (range 6) 15037 | -5/Proximity Caves | Identified exit to Factory 15064 | -5/Proximity Caves | Entered Factory 15064 | -5/Factory | Evolved 2 slots: Utility x2 15065 | -5/Factory | Identified exit to Upper Caves 15066 | -5/Factory | Identified exit to Factory 15067 | -5/Factory | Loaded intel: 100 trap records 15068 | -5/Factory | Loaded intel: 250 non-interactive machine locations 15069 | -5/Factory | Loaded intel: 4 garrison access locations 15100 | -5/Factory | Build established: Derelict-Assassin 15868 | -5/Factory | Discovered exit to Factory (range 10) 16147 | -5/Factory | Build established: Hacker-Assassin 16288 | -5/Factory | Fabricated Cmb. Linear Gravjet (x2) 16385 | -5/Factory | Discovered exit to Factory (range 4) 16887 | -5/Factory | Build established: Hacker-Skirmisher 16975 | -5/Factory | Spotted B-75 Beast 17002 | -5/Factory | Entered Upper Caves 17003 | -5/Upper Caves | Identified exit to Upper Caves 17032 | -5/Upper Caves | Learned Factory interactive machine intel 17043 | -5/Upper Caves | Learned Factory emergency access door positions 17122 | -5/Upper Caves | A Derelict revealed a hidden shortcut to "reach the base" 17128 | -5/Upper Caves | Identified exit to Warlord 17129 | -5/Upper Caves | Entered Warlord 17174 | -5/Warlord | System corruption cleaned by Quarantine Array 17345 | -5/Warlord | Visited the Vortex Lab 17362 | -5/Warlord | Warlord's base attacked by MAIN.C 17583 | -5/Warlord | Opened Warlord's prototype stash 17588 | -5/Warlord | Found Prototype Reactor 17588 | -5/Warlord | Identified Vortex Chain Reactor 17619 | -5/Warlord | Rebuked by Warlord 17712 | -5/Warlord | Warlord forces counterattacked 17785 | -5/Warlord | Opened side exit 17810 | -5/Warlord | Discovered new exit (range 9) 17818 | -5/Warlord | Identified exit to Proximity Caves 17819 | -5/Warlord | Entered Proximity Caves 17821 | -4/Proximity Caves | Attracted the attention of an 0b10 checkpoint 17842 | -4/Proximity Caves | Lost 5 allies 18106 | -4/Proximity Caves | Learned Research interactive machine intel 18888 | -4/Proximity Caves | Learned Research terminal intel 19082 | -4/Proximity Caves | Discovered exit to Factory (range 18) 19147 | -4/Proximity Caves | Entered Factory 19147 | -4/Factory | Evolved 2 slots: Utility x2 19149 | -4/Factory | Loaded intel: 51 interactive machine locations 19455 | -4/Factory | Repaired Hvy. Shock Bomb Launcher 19524 | -4/Factory | Build established: Hacker-Assassin 19735 | -4/Factory | Fabricated B-60 Warrior? 20881 | -4/Factory | Core integrity fell below 50% 20908 | -4/Factory | Lost 17 parts (1p3n8u5w) 20910 | -4/Factory | Core integrity fell below 20% 20920 | -4/Factory | Destroyed by exploding Fusion Modulator Last Messages --------------- Hpw. Shock Rifle (95%). 20879_ Dropped Lrg. Storage Unit. 20881_ Slammed into U-05 Engineer. 20881_ A0-MCA's Component Scanner broken. 20881_ Destabilizing: Short circuit. 20881_ >> MONITOR: Recycling Unit F001 accepting Mic. Fission Core (85%). 20884_ >> MONITOR: Recycling Unit F001 accepting Antigrav System (85%). 20887_ >> MONITOR: Recycling Unit F001 accepting Tesla Rifle (90%). 20890_ >> MONITOR: Recycling Unit F001 accepting Wheel (87%). 20893_ Penetrated by Slug. 20904_ K-01 Serf cleans the Construction Platform. 20907_ Slammed into S-27 Virus. 20909_ Penetrated by Slug. 20920_ Fusion Modulator explodes. 20920_ S-27 Virus destroyed. Map ----- +----------------------------------------------------+ | ?????????########## ? # ! ###??????## | | ????????? ######### ??? ############## ######### | | ?????????????????## ?????############## ####### | | ?????????????????## ????????????????## ! # # | | ????????????????????????????????????## | | ????????????????????????????????????## # ? | | ????????????????????????????????????## | | ????????????????????????????????????## ! | | ????????????"""?????????????????????## ! | | ????????????"T????????????????#?????## | | ????????????"""??????????????? ?????R/ #^ | | ?????????????????????????????? ?????############ | | ?????????????????????????????? ????? ## | | ?????????????????????????????? ??????????????????? | | ?????????????????????????????? ??????????????????? | | ?????????????????????????????# #?????????????????? | | ?????????????????????????????# #?????????????????? | | ?????????????????????????????# #?????????????????? | | ?????????????????????????????# #???? ????????????? | | ??????????????????????######## #?###/????????????? | | ??????????????????????# # #?# ??????????# | | ??????????????????????# # ### ??? | | ??????????????????????#ps + ] T ???? | | ??????????????????????# s#%### ?? | | ??????????????????????# s#%#??? ??##?????## | | ??????????????????????# @[%=# #??##+########### | | ??????????????????????######## #??# # | | ?????????????????????#########/#??# # | | ?????????????????????# #??# """"""""" # | | ?????????????????????# #### # | | ?????????????????????# """"""" / + """"""""" # | | ?????????????????????# """"""" #### # | | ?????????????????????? """"""" #??# """"""""" #^^ | | ???????????????????????""""""" #??# # | | ???????????????????????? #??#]!= # | | ??????R??"""T"""????????? #?# ]!= % / | | ????????????????????????########?##]== # | | ??????????????????????????????????# # | | ??????????????????????????????????############## | | ??????????????????????????????????????R | | ???????????????""??????????????????????## | | ???????????????""??????????????????????## | | ???????????????""??????################## | | ????????????????T??????################## | | ???????????????""??????## #######/### | | ???????????????""??????## # %[ # | | ???????????????""??????## """ """ # # | | ???????????????????????## """ """ # # | | ???????????????????????##] """ """ # === # | | ???????????????????????## # === # | +----------------------------------------------------+ Best States ------------- Heat Dissipation 65 Energy Generation 55 Energy Capacity 700 Matter Stores 300 Matter Capacity 300 Sight Range 22 Robot Scan Range 16 Terrain Scan Range 16 Terrain Scan Density 10 Jamming Range 16 Armor Coverage 800 Resistance: TH 10 Evasion (%) 50 Recoil Reduction 2 Offensive Hacking 26 Defensive Hacking 12 Item Schematics ----------------- Plasma Cutter | -9/Recycling | Hacked Combat Drone Bay | -6/Data Miner | Free Lgt. Regenerative Plating | -6/Data Miner | Free Enh. Flexi-carbon Leg | -6/Data Miner | Free Imp. Matter Compressor | -6/Data Miner | Free Hvy. Proton Cannon | -6/Data Miner | Free Myomer Leg | -6/Data Miner | Free Adv. Cryofiber Web | -6/Data Miner | Free Hardcell Cannon | -6/Data Miner | Free Adv. Recoil Stabilizer | -6/Data Miner | Free Lrn. Sensor Array | -6/Data Miner | Free Impulse Thruster Array | -6/Data Miner | Free Imp. Gyrokinetic Inverter | -4/Factory | Hacked Robot Schematics ------------------ H-66 Slayer | -6/Data Miner | Free B-60 Warrior | -6/Data Miner | Free B-48 Gladiator | -6/Data Miner | Free Y-54 Guardian | -6/Data Miner | Free Fabricated ------------ Cmb. Linear Gravjet | x2 | -5/Factory | Preloaded B-60 Warrior | x3 | -4/Factory Repaired ---------- Hvy. Shock Bomb Launcher | 38% | -4/Factory Alien Tech Used ----------------- None Achievements -------------- None Challenges ------------ None Game ------ Seed FusionCryofiberStorm Manual? 0 Play Time 02:50:17 Cumulative 214.5 hours Start 2025.05.06 @ 10:35:36 End 2025.05.08 @ 12:29:34 Sessions 13 Manual Loads 0 Difficulty Rogue Special Mode None Game No. 122 Rogue 119 Adventurer 3 Explorer 0 Win Type - Total 4 Types 4/0/0/0/0/0/0/0/0/0 Lore% 61 Gallery% 61 Achievement% 53 Wizard Run 0 Options --------- Layout 1 ASCII 0 Keyboard 1 Movement Vi Keybinds 0 Fullscreen 1 Font 28/SmallcapsGlow Map View 50x43 Zoom Use 0% Tactical HUD 1 Map Filters NONE Filters NONE Steam X RUN: 1891c040-3cdd-4b22-a288-176c0aebeddb